Cogmind - Beta 15 @@@ ROGUE MODE // 2025.09.07 @ 06:44:18 Player: Godsword Result: Self-destructed Performance ------------- Evolutions (4) 2000 Regions Visited (6) 1200 Robots Destroyed (25) 125 Value Destroyed (571) 571 Prototype IDs (5) 100 Alien Tech Used (0) 0 Bonus (346) 346 TOTAL SCORE: 4342 Bonus ------- Follower Combat Kills 346 Cogmind --------- Core Integrity 754/850 Matter 72/300 Energy 1/100 System Corruption 0% Temperature Cool (10) Movement Hovering (111) Ox1 Location -6/Factory Parts ------- > --- POWER (2) -------- (None) > --- PROPULSION (5) --- Improved Hover Unit Improved Hover Unit Cooled Airjet VTOL Module > --- UTILITY (6) ------ Small Storage Unit Advanced Weight Redist. System Improved Sensor Array Advanced Signal Interpreter Advanced Terrain Scanner Experimental Targeting Computer > --- WEAPON (2) ------- Mini Assault Cannon Magnetic Acceleration Cannon > --- INVENTORY (8) ---- Light Nuclear Core Improved Heat Sink Advanced Weight Redist. System Improved Terrain Scanner Mini Grenade Launcher Plasma Cutter Flail Heavy Flail Peak State ------------ > --- POWER ------------ Light Nuclear Core Micro Nuclear Core > --- PROPULSION ------- Improved Hover Unit Improved Hover Unit Gravmag System Cooled Airjet VTOL Module > --- UTILITY ---------- Small Storage Unit Advanced Weight Redist. System Improved Sensor Array Advanced Signal Interpreter Advanced Terrain Scanner Experimental Targeting Computer > --- WEAPON ----------- Mini Assault Cannon Magnetic Acceleration Cannon > --- INVENTORY -------- Light Nuclear Core Improved Heat Sink Advanced Weight Redist. System Improved Terrain Scanner Mini Grenade Launcher Plasma Cutter Flail Heavy Flail [Rating: 57] Favorites ----------- Power Light Ion Engine Engine Light Ion Engine Power Core Micro Nuclear Core Propulsion Wheel Wheel Wheel Hover Unit Improved Hover Unit Flight Unit VTOL Module Utility Experimental Targeting Computer Device Improved Terrain Scanner Storage High-capacity Storage Unit Processor Experimental Targeting Computer Hackware System Shield Weapon Light Assault Rifle Energy Gun Improved Heavy Laser Ballistic Gun Light Assault Rifle Ballistic Cannon Mini Assault Cannon Launcher Mini Grenade Launcher Impact Weapon Heavy Flail Build | -11 -10 -9 -9 -8 -7 -6 ------- Run | Yrd Mat Mat Sto Mat Fac Fac Slots Evolved 8 | . . 2 . 2 2 2 Power 1 | . . . . . 1 . Propulsion 3 | . . 2 . . 1 . Utility 4 | . . . . 2 . 2 Weapon . | . . . . . . . Parts Attached 41 | 8 1 . 7 11 4 10 Power 8 | 2 . . 1 2 2 1 Engine 6 | 2 . . 1 2 1 . Core 2 | . . . . . 1 1 Reactor . | . . . . . . . Propulsion 12 | 2 . . 2 2 2 4 Treads . | . . . . . . . Leg . | . . . . . . . Wheel 4 | 2 . . 2 . . . Hover 6 | . . . . 2 2 2 Flight 2 | . . . . . . 2 Utility 11 | 2 1 . 1 4 . 3 Device 6 | 1 . . . 4 . 1 Storage 2 | 1 1 . . . . . Processor 2 | . . . 1 . . 1 Hackware 1 | . . . . . . 1 Protection . | . . . . . . . Artifact . | . . . . . . . Weapon 10 | 2 . . 3 3 . 2 Energy Gun 4 | 1 . . 2 1 . . Energy Cannon . | . . . . . . . Ballistic Gun 2 | 1 . . 1 . . . Ballistic Cannon 2 | . . . . . . 2 Launcher 1 | . . . . 1 . . Special Weapon . | . . . . . . . Impact Weapon 1 | . . . . 1 . . Slashing Weapon . | . . . . . . . Piercing Weapon . | . . . . . . . Special Melee Weapon . | . . . . . . . Unidentified Prototypes 5 | . . . 2 1 . 2 Parts Lost 9 | . . 3 . 1 . 5 Power 3 | . . 1 . . . 2 Propulsion 4 | . . . . 1 . 3 Utility . | . . . . . . . Weapon 2 | . . 2 . . . . Highest Loss Streak 3 | . . 3 . 1 . 3 To Critical Strikes . | . . . . . . . Average Backups 12 | 1 4 6 16 17 7 7 Power 1 | . 1 1 1 1 . 1 Propulsion . | . . . . . . . Utility 6 | . 2 4 11 8 4 2 Weapon 2 | . 1 1 2 4 2 2 Tool/Special . | . . . . . . . Unused Backups 27 | . . . 3 16 1 7 Power 4 | . . . 1 1 . 2 Propulsion 1 | . . . . 1 . . Utility 14 | . . . 2 9 1 2 Weapon 6 | . . . . 4 . 2 Tool/Special 2 | . . . . 1 . 1 Average Slot Usage (%) 87 | . 100 66 72 93 96 97 Engine 9 | . 14 7 11 9 11 3 Core 1 | . . . . . 3 8 Wheel 21 | . 28 22 24 27 13 3 Hover 6 | . . . . 3 20 22 Device 13 | . 14 11 3 17 15 20 Storage 9 | . 14 11 11 9 7 6 Processor 6 | . . . 7 9 7 6 Energy Gun 6 | . 14 7 7 9 . . Ballistic Gun 4 | . 14 7 7 2 . . Ballistic Cannon 1 | . . . . . . 7 Launcher 1 | . . . . 1 7 2 Impact Weapon 2 | . . . . 4 7 2 Peak Build Rating 57 | 9 9 9 23 32 37 57 Average Rating 23 | 5 8 8 15 28 32 48 On Entrance 16 | . 9 9 6 23 28 37 Naked Turns . | . . . . . . . Heaviest Build 56 | 13 47 47 49 56 21 30 Greatest Support 46 | 26 26 26 46 46 39 40 Greatest Overweight (x) 1 | . 1 1 1 1 . 1 Average Overweight (x) . | . . 1 1 . . . Largest Inventory Capacity 20 | 8 20 20 20 20 8 8 Average Capacity 14 | 7 10 20 20 17 8 8 Most Carried 20 | 3 6 6 20 20 8 8 Average Carried 12 | 1 4 6 17 17 7 7 Final Capacity 20 | 8 20 20 20 8 8 8 Final Carried 20 | 3 6 6 20 8 8 8 Class Distribution -------------------- 56% | Mutant 31% | Commander-Mutant 9% | Scavenger-Mutant Dominant Class ---------------- Mutant | -10/Materials Mutant | -9/Materials Commander-Mutant | -9/Storage Commander-Mutant | -8/Materials Mutant | -7/Factory Mutant | -6/Factory Resources | -11 -10 -9 -9 -8 -7 -6 ----------- Run | Yrd Mat Mat Sto Mat Fac Fac Matter Collected 584 | 293 45 . 80 125 . 41 Remotely . | . . . . . . . Salvage Created 774 | 147 137 . 30 331 . 129 Parts 53 | 15 10 . 5 16 . 7 Haulers Intercepted 1 | . . . . 1 . . Recyclers Shooed 2 | . . . . 1 . 1 Parts Field Recycled . | . . . . . . . Retrieved Matter . | . . . . . . . Parts Self-Destructed . | . . . . . . . Prevented . | . . . . . . . Kills | -11 -10 -9 -9 -8 -7 -6 ------- Run | Yrd Mat Mat Sto Mat Fac Fac Combat Hostiles Destroyed 9 | . 2 . . 3 . 4 Guns 2 | . 2 . . . . . Cannons 4 | . . . . . . 4 AOE 3 | . . . . 3 . . Classes Destroyed 10 | 2 3 . . 3 . 2 Builder 3 | . 1 . 1 1 . . Tunneler 4 | 4 . . . . . . Hauler 1 | . . . . 1 . . Recycler 2 | 1 . . . 1 . . Operator 2 | . . . . 1 . 1 Watcher 4 | . 1 . . 2 . 1 Swarmer 3 | . . . . . . 3 Grunt 4 | . 2 . . 2 . . Duelist 1 | . . . . . . 1 Specialist 1 | . . . . 1 . . Best Kill Streak 4 | 4 2 . 1 4 . 3 Combat Bots Only 3 | . 1 . . 3 . 3 Max Kills in Single Turn 2 | 1 1 . 1 2 . 1 Gunslinging . | . . . . . . . Exploded 2 | . . . . 2 . . Melee . | . . . . . . . Uniques/NPCs Destroyed . | . . . . . . . Combat | -11 -10 -9 -9 -8 -7 -6 -------- Run | Yrd Mat Mat Sto Mat Fac Fac Hostile Shots Fired 125 | . 14 30 . 17 5 59 Missed 52 | . 4 6 . 11 2 29 Hits 73 | . 10 24 . 6 3 30 Projectile 73 | . 10 24 . 6 3 30 Critical Strikes 1 | . . . . . . 1 Damage Taken 1150 | . 125 276 2 119 52 576 Core 273 | . 51 113 . 13 . 96 Absorbed by Shields . | . . . . . . . Core Remaining (%) 89 | 100 79 . 71 97 100 . Volleys Fired 66 | 13 20 7 3 13 . 10 Largest 2 | 2 2 2 2 2 . 2 Hottest 126 | 70 70 70 85 126 . 84 Shots Fired 125 | 26 40 13 6 22 . 18 Gun 104 | 26 40 13 6 19 . . Cannon 16 | . . . . . . 16 Launcher 5 | . . . . 3 . 2 Special . | . . . . . . . Kinetic 67 | 13 20 7 3 8 . 16 Thermal 51 | 13 20 6 1 11 . . Explosive 5 | . . . . 3 . 2 Electromagnetic 2 | . . . 2 . . . Robot Hit Streak 12 | 6 10 3 5 8 . 12 Robot Miss Streak 4 | 2 4 3 . 2 . 1 Penetration Max . | . . . . . . . Secondary Targets . | . . . . . . . Shots Hit Robots 84 | 15 28 4 5 17 . 15 Core Hits 37 | 7 8 1 1 12 . 8 Critical Kills . | . . . . . . . Critical Parts Destroyed 1 | . . . . . . 1 Critical Strikes 4 | . 2 . . . . 2 Burn 2 | . 2 . . . . . Blast 1 | . . . . . . 1 Smash 1 | . . . . . . 1 Melee Attacks 3 | . . . . 2 . 1 Impact 3 | . . . . 2 . 1 Slashing . | . . . . . . . Piercing . | . . . . . . . Sneak Attacks 1 | . . . . 1 . . Combat Hostiles . | . . . . . . . Follow-up Attacks . | . . . . . . . Damage Inflicted 1691 | 155 290 39 76 616 . 515 Guns 772 | 155 290 39 72 216 . . Cannons 378 | . . . . . . 378 Explosions 379 | . . . . 300 . 79 Melee 158 | . . . . 100 . 58 Ramming 4 | . . . 4 . . . Kinetic 657 | 70 128 15 18 48 . 378 Thermal 466 | 85 162 24 27 168 . . Explosive 379 | . . . . 300 . 79 Electromagnetic 27 | . . . 27 . . . Impact 158 | . . . . 100 . 58 Slashing . | . . . . . . . Piercing . | . . . . . . . Highest Corruption . | . . . . . . . Average Corruption . | . . . . . . . Corruption Purged . | . . . . . . . Corruption Blocked . | . . . . . . . Overload Shots . | . . . . . . . Overflow Damage 74 | . . . . 16 . 58 Projectiles . | . . . . . . . Explosions . | . . . . . . . Melee 74 | . . . . 16 . 58 Knockbacks 6 | . . . . . . 6 Impact 1 | . . . . . . 1 Kinetic 5 | . . . . . . 5 Secondary . | . . . . . . . Self-Inflicted Damage 64 | . . . 2 27 . 35 Shots 2 | . . . . 1 . 1 Rammed 1 | . . . 1 . . . Targets Rammed 1 | . . . 1 . . . Kicked . | . . . . . . . Crushed . | . . . . . . . Highest Temperature 233 | 150 233 97 38 68 . 89 Average Temperature 69 | 61 120 41 16 26 . 35 Received Heat Transfer 492 | . 72 141 . 36 27 216 Siege Activations . | . . . . . . . Martial Activations . | . . . . . . . Shielding Activations . | . . . . . . . Robots Disrupted . | . . . . . . . Combat Hostiles . | . . . . . . . Robots Corrupted 1 | . . . . . . 1 Combat Hostiles . | . . . . . . . Parts Fried 4 | . . . . 3 . 1 Impact Corruptions 4 | . . . . 1 . 3 Robots Melted . | . . . . . . . Combat Hostiles . | . . . . . . . Parts Melted . | . . . . . . . Heat Transferred 1258 | 259 629 74 37 259 . . Parts Sabotaged . | . . . . . . . Parts Stolen . | . . . . . . . Parts Stripped . | . . . . . . . Power Chain Reactions . | . . . . . . . Alert | -11 -10 -9 -9 -8 -7 -6 ------- Run | Yrd Mat Mat Sto Mat Fac Fac Maximum Alert Level . | . . . . . . . Low Security (%) 100 | 100 100 100 100 100 100 100 Level 1 . | . . . . . . . Level 2 . | . . . . . . . Level 3 . | . . . . . . . Level 4 . | . . . . . . . Level 5 . | . . . . . . . High Security . | . . . . . . . Max Security . | . . . . . . . Peak Influence 111 | 10 40 1 110 111 46 107 Initial 46 | . . 1 . 35 46 . Average 29 | 2 11 . 34 38 19 42 Influence Increases 891 | 25 62 . 210 359 . 235 Destroy 0b10 Robot/C 420 | . 40 . 120 180 . 80 Destroy 0b10 Robot/NC 80 | 25 10 . 5 30 . 10 Destroy Leader 110 | . 12 . 30 46 . 22 Allied During Kill 100 | . . . 55 45 . . Successful Hack 12 | . . . . 7 . 5 Disable Machine 30 | . . . . 15 . 15 Destroy Structure 34 | . . . . 21 . 13 Partial Spotted 15 | . . . . 15 . . Lose Combat Pursuer 90 | . . . . . . 90 Influence Decreases 794 | 25 57 5 126 341 102 138 Entered New Map 109 | . . 4 . 49 56 . Time Decay 520 | 25 57 1 86 212 46 93 Lost Part 45 | . . . . . . 45 Lost Ally 120 | . . . 40 80 . . Squads Dispatched 12 | . . . 3 3 1 5 Investigation 7 | . . . 2 1 1 3 Extermination . | . . . . . . . Reinforcement 3 | . . . . 2 . 1 Assault . | . . . . . . . Garrison 2 | . . . 1 . . 1 Intercept . | . . . . . . . Searches Triggered . | . . . . . . . Construction Impeded . | . . . . . . . Haulers Reinforced . | . . . . . . . Active Scanning Responses . | . . . . . . . Cargo Convoy Interrupts . | . . . . . . . Stealth | -11 -10 -9 -9 -8 -7 -6 --------- Run | Yrd Mat Mat Sto Mat Fac Fac Distress Signals 7 | . 1 1 2 1 . 2 Communications Jammed . | . . . . . . . Distress Signals . | . . . . . . . Times Spotted 57 | . 5 5 12 10 3 22 Peak Tracking Total 11 | . 3 5 3 2 3 11 Tactical Retreats 3 | . . . . . . 3 Traps | -11 -10 -9 -9 -8 -7 -6 ------- Run | Yrd Mat Mat Sto Mat Fac Fac Traps Triggered 2 | . 1 . . . . 1 Indirectly . | . . . . . . . Trap Hack Attempts . | . . . . . . . Triggered . | . . . . . . . Disarmed . | . . . . . . . Reprogrammed . | . . . . . . . Reused . | . . . . . . . Traps Extracted . | . . . . . . . Installed . | . . . . . . . Triggered . | . . . . . . . Machines | -11 -10 -9 -9 -8 -7 -6 ---------- Run | Yrd Mat Mat Sto Mat Fac Fac Machines Disabled 2 | . . . . 1 . 1 Max in Single Turn 1 | . . . . 1 . 1 Machines Repaired . | . . . . . . . Machines Dismantled . | . . . . . . . Machines Sabotaged . | . . . . . . . Overloaded Fab Kills . | . . . . . . . Hacking | -11 -10 -9 -9 -8 -7 -6 --------- Run | Yrd Mat Mat Sto Mat Fac Fac Machines Accessed 11 | . 1 . 4 2 1 3 Terminals 9 | . 1 . 3 2 1 2 Fabricators 1 | . . . . . . 1 Repair Stations . | . . . . . . . Recycling Units . | . . . . . . . Scanalyzers . | . . . . . . . Garrison Access 1 | . . . 1 . . . Total Hacks 24 | . 4 . 7 4 3 6 Successful 8 | . 1 . 3 3 . 1 Failed 16 | . 3 . 4 1 3 5 Catastrophic 5 | . . . 2 . . 3 Database Lockouts . | . . . . . . . Manual . | . . . . . . . Terminals 20 | . 4 . 5 4 3 4 Fabricators 2 | . . . . . . 2 Repair Stations . | . . . . . . . Recycling Units . | . . . . . . . Scanalyzers . | . . . . . . . Garrison Access 2 | . . . 2 . . . Terminal Hacks 8 | . 1 . 3 3 . 1 Record 2 | . . . 1 1 . . Robot Analysis 1 | . . . . 1 . . Open Door 1 | . . . 1 . . . Open DSF 1 | . . . . . . 1 Maintenance Status 1 | . 1 . . . . . Registered Components 1 | . . . . 1 . . Zone Layout 1 | . . . 1 . . . Fabricator Hacks . | . . . . . . . Repair Station Hacks . | . . . . . . . Recycling Unit Hacks . | . . . . . . . Scanalyzer . | . . . . . . . Garrison Access Hacks . | . . . . . . . Unauthorized Hacks . | . . . . . . . Terminals . | . . . . . . . Fabricators . | . . . . . . . Repair Stations . | . . . . . . . Recycling Units . | . . . . . . . Scanalyzers . | . . . . . . . Garrison Access . | . . . . . . . Data Cores Recovered . | . . . . . . . Used . | . . . . . . . Hacking Detections 9 | . 1 . 2 2 1 3 Full Trace Events 6 | . 1 . 2 . 1 2 Feedback Events . | . . . . . . . Feedback Blocked . | . . . . . . . Robot Schematics Acquired . | . . . . . . . Robots Built . | . . . . . . . Authchips . | . . . . . . . Time . | . . . . . . . Total Robot Build Rating . | . . . . . . . Part Schematics Acquired . | . . . . . . . Parts Built . | . . . . . . . Authchips . | . . . . . . . Time . | . . . . . . . Total Part Build Rating . | . . . . . . . Parts Repaired . | . . . . . . . Time . | . . . . . . . Parts Recycled . | . . . . . . . Recycled Matter . | . . . . . . . Retrieved Matter . | . . . . . . . Retrieved Components . | . . . . . . . Parts Scanalyzed . | . . . . . . . Part Schematics Acquired . | . . . . . . . Parts Damaged . | . . . . . . . Bothacking | -11 -10 -9 -9 -8 -7 -6 ------------ Run | Yrd Mat Mat Sto Mat Fac Fac Used RIF Installer . | . . . . . . . Robots Hacked . | . . . . . . . Non-combat . | . . . . . . . Combat . | . . . . . . . Robot Hacks Applied . | . . . . . . . Relay Couplers Released . | . . . . . . . Fabnet Peak Effective % . | . . . . . . . Robots Rewired . | . . . . . . . Allies Hacked . | . . . . . . . Hacks Repelled . | . . . . . . . Allies | -11 -10 -9 -9 -8 -7 -6 -------- Run | Yrd Mat Mat Sto Mat Fac Fac Total Allies 10 | . . . 10 . . . Largest Group 10 | . . . 10 7 . . Highest-Rated Group 88 | . . . 88 63 . . Highest-Rated Ally 16 | . . . 16 16 . . Total Orders 1 | . . . 1 . . . GUARD 1 | . . . 1 . . . Ally Attacks 118 | . . . 41 77 . . Total Damage 833 | . . . 257 576 . . Kills 14 | . . . 6 8 . . Allies Corrupted . | . . . . . . . Allies Melted . | . . . . . . . Intel | -11 -10 -9 -9 -8 -7 -6 ------- Run | Yrd Mat Mat Sto Mat Fac Fac Active Infowar (turns) 1225 | 29 161 48 140 483 131 233 Sensors 847 | . . . . 483 131 233 Terrain 1009 | 29 161 48 140 398 . 233 Robot Analysis Total 1 | . . . . 1 . . Derelict Logs Recovered . | . . . . . . . Drone Launches . | . . . . . . . Drone Recoveries . | . . . . . . . Exploration | -11 -10 -9 -9 -8 -7 -6 ------------- Run | Yrd Mat Mat Sto Mat Fac Fac Turns Passed 1615 | 121 161 48 438 483 131 233 Spaces Moved 1395 | 73 99 29 304 375 200 315 Core 1 | 1 . . . . . . Treads . | . . . . . . . Legs . | . . . . . . . Wheels 799 | 72 99 29 304 295 . . Hover 595 | . . . . 80 200 315 Flight . | . . . . . . . Fastest Speed 45 | 50 90 105 100 66 53 45 Average Speed 82 | 91 94 105 104 89 61 56 Slowest Speed 116 | 100 105 105 105 100 66 116 Overloaded Moves . | . . . . . . . Propulsion Burnouts . | . . . . . . . Robots Hopped . | . . . . . . . Potential Cave-ins . | . . . . . . . Cave-ins Triggered . | . . . . . . . Exploration Rate (%) 21 | 5 28 6 58 35 5 14 Regions Visited 6 Branch Regions 1 Pre-discovered Areas . | . . . . . . . Known Exits Taken . | . . . . . . . Unknown Exits Taken 6 | 1 1 1 1 1 1 . Scrap Searched . | . . . . . . . Spaces Dug . | . . . . . . . Terrain Destroyed 32 | . . . . 20 . 12 Melee . | . . . . . . . Projectile 1 | . . . . 1 . . AOE 31 | . . . . 19 . 12 Terrain Rammed . | . . . . . . . Walls Destroyed . | . . . . . . . Machines Disabled . | . . . . . . . Actions | -11 -10 -9 -9 -8 -7 -6 --------- Run | Yrd Mat Mat Sto Mat Fac Fac Total 1746 | 100 128 35 419 507 208 349 Wait 156 | 3 4 . 77 70 . 2 Move 1389 | 72 98 28 303 374 199 315 Hop . | . . . . . . . Pick Up 41 | 3 2 . 21 11 2 2 Fast Attach 26 | 8 3 . 3 3 2 7 Attach 10 | . . . 3 4 1 2 Detach 1 | . . . . . . 1 Swap 10 | . 1 . 1 5 1 2 Drop 41 | 1 . . 5 25 3 7 Fire 66 | 13 20 7 3 13 . 10 Melee 3 | . . . . 2 . 1 Ram 1 | . . . 1 . . . Kick . | . . . . . . . Crush . | . . . . . . . Escape Stasis . | . . . . . . . Rewire 2 | . . . 2 . . . Trap . | . . . . . . . Miscellaneous . | . . . . . . . Route ------- -11/Scrapyard -10/Materials -9/Materials -9/Storage -8/Materials -7/Factory -6/Factory History --------- Turn | Location | Event 18 | -11/Scrapyard | Discovered new exit (range 14) 122 | -11/Scrapyard | Entered Materials 251 | -10/Materials | Discovered new exit (range 14) 283 | -10/Materials | Entered another Materials area 283 | -9/Materials | Evolved 2 slots: Propulsion x2 308 | -9/Materials | Build established: Mutant 328 | -9/Materials | Discovered new exit (range 3) 331 | -9/Materials | Entered Storage 344 | -9/Storage | Met 01-MTF 348 | -9/Storage | Lost 3 parts (1p2w) 470 | -9/Storage | Found Prototype Processor 471 | -9/Storage | Identified Exp. Targeting Computer 559 | -9/Storage | Assisted by bots powering up and referring to "LRC-V3" 573 | -9/Storage | Garrison activated, responded to threat 731 | -9/Storage | Discovered new exit (range 11) 769 | -9/Storage | Entered Materials 769 | -8/Materials | Accompanied by 8 allies (01-MTF) 769 | -8/Materials | Evolved 2 slots: Utility x2 772 | -8/Materials | 01-MTF left 848 | -8/Materials | Build established: Commander-Mutant 1230 | -8/Materials | Lost 3 allies 1245 | -8/Materials | Discovered new exit (range 8) 1252 | -8/Materials | Entered Factory 1252 | -7/Factory | Evolved 2 slots: Power x1, Propulsion x1 1295 | -7/Factory | Discovered new exit (range 5) 1383 | -7/Factory | Entered another Factory area 1383 | -6/Factory | Evolved 2 slots: Utility x2 1603 | -6/Factory | Garrison activated, responded to threat 1616 | -6/Factory | Self-destructed Last Messages --------------- 01576_ Acquired 33 matter. 01577_ Dropped VTOL Module. 01577_ K-01 Serf collects debris. 01577_ Acquired Imp. Hover Unit. 01581_ K-01 Serf collects debris. 01584_ Connecting with Fabricator... 01584_ ALERT: Suspicious activity at Fabricator F002. Dispatching Investigation squad. 01588_ Discarded System Shield. 01589_ Acquired Adv. Signal Interpreter. 01597_ Gravmag System destroyed. 01600_ Lgt. Nuclear Core destroyed. 01603_ U-05 Engineer knocked back. 01603_ U-05 Engineer calls for garrison support. 01603_ ALERT: Activating Garrison Access F002. 01603_ U-05 Engineer knocked back. 01606_ Mic. Nuclear Core destroyed. 01607_ Acquired 1 matter. 01610_ L-41 Fighter knocked back. 01613_ L-41 Fighter destroyed. Map ----- +----------------------------------------------------+ | ?????????????????????????????????????????????????? | | ?????????????????????????????????????????????????? | | ?????????????????????????????????????????????????? | | ?????????????????????????????????????????????????? | | ?????????????????????????????????????????????????? | | ?????????????????????????????????????????????????? | | ?????????????????????????????????????????????????? | | ?????????????????????????????????????????????????? | | ?????????????????????????????????????????????????? | | ?????????????????????????????????????????????????? | | ???????????????#?????????????????????????????????? | | ?????????????????????????????????????????????????? | | ????????????????????????????????#????????????????? | | ?????????????????????????????????????????????????? | | ?????????????????????????????????????????????????? | | ??????????????#????????????#????????????? ???????? | | ?????????????????????????#???????????????????????? | | ??????????????########?#?????????????????????????? | | ???????????????" #??###############??????????? | | ???????????????" """ #??# #???????????? | | ????????????? ?? """ ???# ! #???????????? | | ???????????????? """ ???# #???????????? | | ????????????????? ????# !! #???? ??????? | | ??? ??????????? ????# !! #???????????? | | ??? ###+#######+###### ! #???????????? | | ??? ^ gYg! /@ #???????????? | | ??? g gg#### #???????????? | | ?? g #??# #???????????? | | ?? gkg##?# #????????? ?? | | ?? ##?# [ #???????????? | | ###########+#### #??# #???? ??????? | | # # R##########+#############+#### | | # """"" # m R A | | # """ "" F" / | | # """ "" "" # """ | | # """ # """ | | # # R """ | | #########################+################## | | ???????????????????????????????????????????# """ | | ???????????????#?#???? ????????????????????# """ | | ???????#??????????????????? ????############ """ | | ??????????????????????????????? # + | | ????????????????#??????????"??? # # """ | | ????????????#?????????????????? # # """ | | ???????????#???????#????????????# # """ | | ????????#???????????????? ??????# # | | ????????????????????????????????# # """ | | ????????????????????????????????# # """ | | ????????????????????????????????# + """ | | ????????????????????????????????# # | +----------------------------------------------------+ Best States ------------- Heat Dissipation 37 Energy Generation 24 Energy Capacity 265 Matter Stores 300 Matter Capacity 300 Sight Range 16 Robot Scan Range 15 Terrain Scan Range 20 Terrain Scan Density 10 Additional Mass Support 9 Evasion (%) 56 Targeting Accuracy 12 Defensive Hacking 10 Item Schematics ----------------- None Robot Schematics ------------------ None Fabricated ------------ Nothing Repaired ---------- Nothing Alien Tech Used ----------------- None Achievements -------------- None Challenges ------------ None Game ------ Seed 1234567890 Manual? 1 Play Time 00:24:18 Cumulative 17.3 hours Start 2025.09.07 @ 06:18:31 End 2025.09.07 @ 06:44:18 Sessions 1 Manual Loads 0 Difficulty Rogue Special Mode None Game No. 49 Rogue 49 Adventurer 0 Explorer 0 Win Type - Total 0 Types 0/0/0/0/0/0/0/0/0/0 Lore% 16 Gallery% 22 Achievement% 24 Wizard Run 0 Options --------- Layout 2 ASCII 0 Keyboard 0 Movement Mouse Keybinds 0 Fullscreen 2 Font 24/Smallcaps Map View 50x44 Zoom Use 0% Tactical HUD 1 Map Filters NONE Filters NONE Steam 1 RUN: efcf3913-7879-42bb-a7b3-5261d1f03d98